Cogmind - Beta 17 @@@ ROGUE MODE // 2026.07.03 @ 19:40:47 Player: TheSkyeDoctor Result: Destroyed by D-53 Grenadier with Mini Grenade Launcher Performance ------------- Evolutions (0) 0 Regions Visited (2) 400 Robots Destroyed (9) 45 Value Destroyed (210) 210 Prototype IDs (0) 0 Alien Tech Used (0) 0 Bonus (0) 0 TOTAL SCORE: 655 Bonus ------- None Cogmind --------- Core Integrity 0/250 Matter 300/300 Energy 99/100 System Corruption 0% Temperature Cool (0) Movement Core (50) Location -10/Mines Parts ------- > --- POWER (1) -------- (None) > --- PROPULSION (2) --- (None) > --- UTILITY (2) ------ (None) > --- WEAPON (2) ------- (None) > --- INVENTORY (5) ---- Ion Engine High-capacity Storage Unit High-capacity Battery (250) Improved Terrain Scanner Datajack Peak State ------------ > --- POWER ------------ Light Nuclear Core > --- PROPULSION ------- Light Treads Light Treads > --- UTILITY ---------- High-capacity Storage Unit Seismic Detector > --- WEAPON ----------- EM Pulse Gun Assault Rifle > --- INVENTORY -------- Ion Engine Light Ion Engine Wheel Improved Terrain Scanner Datajack [Rating: 9] Favorites ----------- Power Light Ion Engine Engine Light Ion Engine Power Core Light Nuclear Core Propulsion Light Treads Treads Light Treads Wheel Wheel Utility Seismic Detector Device Seismic Detector Storage High-capacity Storage Unit Weapon Assault Rifle Energy Gun EM Pulse Gun Energy Cannon Beam Cannon Ballistic Gun Assault Rifle Build | -11 -10 -10 ------- Run | Yrd Mat Min Slots Evolved . | . . . Power . | . . . Propulsion . | . . . Utility . | . . . Weapon . | . . . Parts Attached 11 | 7 2 2 Power 2 | 1 1 . Engine 1 | 1 . . Core 1 | . 1 . Reactor . | . . . Propulsion 3 | 2 . 1 Treads 2 | 2 . . Leg . | . . . Wheel 1 | . . 1 Hover . | . . . Flight . | . . . Utility 3 | 2 1 . Device 1 | 1 . . Storage 2 | 1 1 . Processor . | . . . Hackware . | . . . Protection . | . . . Artifact . | . . . Weapon 3 | 2 . 1 Energy Gun 1 | 1 . . Energy Cannon 1 | . . 1 Ballistic Gun 1 | 1 . . Ballistic Cannon . | . . . Launcher . | . . . Special Weapon . | . . . Impact Weapon . | . . . Slashing Weapon . | . . . Piercing Weapon . | . . . Special Melee Weapon . | . . . Unidentified Prototypes . | . . . Parts Lost 8 | . . 8 Power 1 | . . 1 Propulsion 3 | . . 3 Utility 1 | . . 1 Weapon 3 | . . 3 Highest Loss Streak 8 | . . 8 To Critical Strikes . | . . . Average Backups 4 | 1 3 5 Power . | . 1 1 Propulsion . | . 1 . Utility 1 | . 1 1 Weapon . | . . . Tool/Special . | . . . Unused Backups 4 | . . 4 Power 1 | . . 1 Propulsion . | . . . Utility 2 | . . 2 Weapon . | . . . Tool/Special 1 | . . 1 Average Slot Usage (%) 99 | . 100 97 Engine 8 | . 12 . Core 5 | . 1 13 Treads 27 | . 28 27 Device 13 | . 14 13 Storage 14 | . 14 14 Energy Gun 13 | . 14 13 Ballistic Gun 14 | . 14 14 Peak Build Rating 9 | 7 9 9 Average Rating 7 | 4 7 8 On Entrance 5 | . 7 9 Avg Prop Armor Cover (%) . | . . . Naked Turns 4 | . . 4 Heaviest Build 50 | 13 50 50 Greatest Support 40 | 40 40 40 Greatest Overweight (x) 4 | . 1 4 Average Overweight (x) . | . . . Largest Inventory Capacity 20 | 8 20 20 Average Capacity 15 | 7 15 19 Most Carried 6 | 3 5 6 Average Carried 4 | 1 3 5 Final Capacity 20 | 8 20 5 Final Carried 5 | 3 4 5 Class Distribution -------------------- 100% | Mutant Dominant Class ---------------- Mutant | -10/Materials Mutant | -10/Mines Resources | -11 -10 -10 ----------- Run | Yrd Mat Min Matter Collected 356 | 285 61 10 Remotely . | . . . Salvage Created 385 | 114 271 . Parts 21 | 4 17 . Haulers Intercepted . | . . . Recyclers Shooed . | . . . Parts Field Recycled . | . . . Retrieved Matter . | . . . Parts Self-Destructed . | . . . Prevented . | . . . Parts Restored . | . . . Kills | -11 -10 -10 ------- Run | Yrd Mat Min Combat Hostiles Destroyed 5 | . 5 . Guns 5 | . 5 . Classes Destroyed 3 | 2 1 . Tunneler 3 | 2 1 . Recycler 1 | 1 . . Grunt 5 | . 5 . Best Kill Streak 3 | 3 2 . Combat Bots Only 2 | . 2 . Max Kills in Single Turn 1 | 1 1 . Gunslinging . | . . . Exploded . | . . . Melee . | . . . Uniques/NPCs Destroyed . | . . . Combat | -11 -10 -10 -------- Run | Yrd Mat Min Hostile Shots Fired 45 | . 26 19 Missed 8 | . 5 3 Hits 37 | . 21 16 Projectile 37 | . 21 16 AOE 19 | . . 19 Damage Taken 962 | . 245 717 Core 259 | . 67 192 Absorbed by Shields . | . . . Core Remaining (%) 100 | 100 . . Volleys Fired 26 | 5 17 4 Largest 2 | 2 2 2 Hottest 80 | 60 60 80 Shots Fired 50 | 10 34 6 Gun 48 | 10 34 4 Cannon 2 | . . 2 Launcher . | . . . Special . | . . . Kinetic 26 | 5 17 4 Thermal 2 | . . 2 Explosive . | . . . Electromagnetic 22 | 5 17 . Robot Hit Streak 8 | 3 8 7 Robot Miss Streak 2 | 1 2 1 Penetration Max . | . . . Secondary Targets . | . . . Shots Hit Robots 34 | 6 24 4 Core Hits 17 | 4 11 2 Critical Kills . | . . . Critical Parts Destroyed . | . . . Critical Strikes . | . . . Melee Attacks . | . . . Impact . | . . . Slashing . | . . . Piercing . | . . . Sneak Attacks . | . . . Combat Hostiles . | . . . Follow-up Attacks . | . . . Damage Inflicted 448 | 79 309 60 Guns 414 | 79 309 26 Cannons 34 | . . 34 Explosions . | . . . Melee . | . . . Ramming . | . . . Kinetic 213 | 67 120 26 Thermal 34 | . . 34 Explosive . | . . . Electromagnetic 201 | 12 189 . Impact . | . . . Slashing . | . . . Piercing . | . . . Highest Corruption . | . . . Average Corruption . | . . . Corruption Purged . | . . . Corruption Blocked . | . . . Overload Shots . | . . . Overflow Damage . | . . . Projectiles . | . . . Explosions . | . . . Melee . | . . . Knockbacks . | . . . Impact . | . . . Kinetic . | . . . Secondary . | . . . Self-Inflicted Damage . | . . . Shots . | . . . Rammed . | . . . Targets Rammed . | . . . Kicked . | . . . Crushed . | . . . Highest Temperature 36 | . 36 6 Average Temperature 17 | . 19 3 Received Heat Transfer 132 | . 132 . Siege Activations . | . . . Martial Activations . | . . . Shielding Activations . | . . . Robots Disrupted . | . . . Combat Hostiles . | . . . Robots Corrupted . | . . . Combat Hostiles . | . . . Parts Fried 1 | . 1 . Impact Corruptions . | . . . Robots Melted . | . . . Combat Hostiles . | . . . Parts Melted . | . . . Heat Transferred 74 | . . 74 Parts Sabotaged . | . . . Parts Stolen . | . . . Parts Stripped . | . . . Power Chain Reactions . | . . . Alert | -11 -10 -10 ------- Run | Yrd Mat Min Maximum Alert Level . | . . . Low Security (%) 100 | 100 100 100 Level 1 . | . . . Level 2 . | . . . Level 3 . | . . . Level 4 . | . . . Level 5 . | . . . High Security . | . . . Max Security . | . . . Peak Influence 50 | 15 50 6 Initial 6 | . . 6 Average 6 | 2 10 . Influence Increases 150 | 15 135 . Destroy 0b10 Robot/C 100 | . 100 . Destroy 0b10 Robot/NC 20 | 15 5 . Destroy Leader 30 | . 30 . Influence Decreases 150 | 15 117 18 Entered New Map 12 | . . 12 Time Decay 138 | 15 117 6 Squads Dispatched 2 | . 2 . Investigation 1 | . 1 . Extermination . | . . . Reinforcement 1 | . 1 . Assault . | . . . Garrison . | . . . Intercept . | . . . Searches Triggered . | . . . Construction Impeded . | . . . Haulers Reinforced . | . . . Active Scanning Responses . | . . . Cargo Convoy Interrupts . | . . . Stealth | -11 -10 -10 --------- Run | Yrd Mat Min Distress Signals . | . . . Communications Jammed . | . . . Distress Signals . | . . . Times Spotted 11 | . 9 2 Peak Tracking Total 3 | . 3 2 Tactical Retreats . | . . . Traps | -11 -10 -10 ------- Run | Yrd Mat Min Traps Triggered 1 | . 1 . Indirectly . | . . . Trap Hack Attempts . | . . . Triggered . | . . . Disarmed . | . . . Reprogrammed . | . . . Reused . | . . . Traps Extracted . | . . . Installed . | . . . Triggered . | . . . Machines | -11 -10 -10 ---------- Run | Yrd Mat Min Machines Disabled . | . . . Max in Single Turn . | . . . Machines Repaired . | . . . Machines Dismantled . | . . . Machines Sabotaged . | . . . Overloaded Fab Kills . | . . . Hacking | -11 -10 -10 --------- Run | Yrd Mat Min Machines Accessed 2 | . 2 . Terminals 2 | . 2 . Fabricators . | . . . Repair Stations . | . . . Recycling Units . | . . . Scanalyzers . | . . . Garrison Access . | . . . Total Hacks 4 | . 4 . Successful . | . . . Failed 4 | . 4 . Catastrophic . | . . . Database Lockouts . | . . . Manual 4 | . 4 . Terminals 4 | . 4 . Fabricators . | . . . Repair Stations . | . . . Recycling Units . | . . . Scanalyzers . | . . . Garrison Access . | . . . Terminal Hacks . | . . . Fabricator Hacks . | . . . Repair Station Hacks . | . . . Recycling Unit Hacks . | . . . Scanalyzer . | . . . Garrison Access Hacks . | . . . Unauthorized Hacks . | . . . Terminals . | . . . Fabricators . | . . . Repair Stations . | . . . Recycling Units . | . . . Scanalyzers . | . . . Garrison Access . | . . . Data Cores Recovered . | . . . Used . | . . . Hacking Detections 2 | . 2 . Full Trace Events . | . . . Feedback Events . | . . . Feedback Blocked . | . . . Robot Schematics Acquired . | . . . Robots Built . | . . . Authchips . | . . . Time . | . . . Total Robot Build Rating . | . . . Part Schematics Acquired . | . . . Parts Built . | . . . Authchips . | . . . Time . | . . . Total Part Build Rating . | . . . Part Studies Acquired . | . . . Parts Repaired . | . . . Time . | . . . Parts Recycled . | . . . Recycled Matter . | . . . Retrieved Matter . | . . . Retrieved Components . | . . . Parts Scanalyzed . | . . . Part Schematics Acquired . | . . . Parts Damaged . | . . . Bothacking | -11 -10 -10 ------------ Run | Yrd Mat Min Used RIF Installer . | . . . Robots Hacked . | . . . Non-combat . | . . . Combat . | . . . Robot Hacks Applied . | . . . Relay Couplers Released . | . . . Fabnet Peak Effective % . | . . . Robots Rewired . | . . . Allies Hacked . | . . . Hacks Repelled . | . . . Allies | -11 -10 -10 -------- Run | Yrd Mat Min Total Allies . | . . . Largest Group . | . . . Highest-Rated Group . | . . . Highest-Rated Ally . | . . . Total Orders . | . . . Ally Attacks . | . . . Total Damage . | . . . Kills . | . . . Allies Corrupted . | . . . Allies Melted . | . . . Intel | -11 -10 -10 ------- Run | Yrd Mat Min Active Infowar (turns) 879 | 27 587 265 Seismic 879 | 27 587 265 Robot Analysis Total . | . . . Derelict Logs Recovered . | . . . Drone Launches . | . . . Drone Recoveries . | . . . Exploration | -11 -10 -10 ------------- Run | Yrd Mat Min Turns Passed 984 | 115 587 282 Spaces Moved 425 | 56 255 114 Core 9 | 2 . 7 Treads 414 | 54 255 105 Legs . | . . . Wheels 2 | . . 2 Hover . | . . . Flight . | . . . Fastest Speed 50 | 50 160 50 Average Speed 202 | 156 202 226 Slowest Speed 240 | 160 240 240 Overloaded Moves . | . . . Propulsion Burnouts . | . . . Robots Hopped . | . . . Potential Cave-ins . | . . . Cave-ins Triggered . | . . . Exploration Rate (%) 19 | 3 35 19 Regions Visited 2 Branch Regions 1 Pre-discovered Areas . | . . . Known Exits Taken . | . . . Unknown Exits Taken 2 | 1 1 . Scrap Searched 1 | . . 1 Spaces Dug . | . . . Terrain Destroyed . | . . . Melee . | . . . Projectile . | . . . AOE . | . . . Terrain Rammed . | . . . Walls Destroyed . | . . . Machines Disabled . | . . . Actions | -11 -10 -10 --------- Run | Yrd Mat Min Total 496 | 70 294 132 Wait 26 | . 17 9 Move 423 | 55 254 114 Hop . | . . . Pick Up 7 | 3 2 2 Fast Attach 7 | 7 . . Attach 2 | . . 2 Detach 1 | . . 1 Swap 2 | . 2 . Drop 2 | . 2 . Fire 26 | 5 17 4 Melee . | . . . Ram . | . . . Kick . | . . . Crush . | . . . Escape Stasis . | . . . Rewire . | . . . Trap . | . . . Miscellaneous . | . . . Route ------- -11/Scrapyard -10/Materials -10/Mines History --------- Turn | Location | Event 34 | -11/Scrapyard | Discovered new exit (range 16) 116 | -11/Scrapyard | Entered Materials 307 | -10/Materials | Build established: Mutant 662 | -10/Materials | Discovered new exit (range 8) 703 | -10/Materials | Entered Mines 750 | -10/Mines | Assembled infested the area 755 | -10/Mines | Assisted by a Guerilla fighting off Assembled 978 | -10/Mines | Core integrity fell below 50% 984 | -10/Mines | Core integrity fell below 20% 985 | -10/Mines | Destroyed by D-53 Grenadier with Mini Grenade Launcher Last Messages --------------- 00790_ Found Med. Laser. 00790_ Found 60 Matter. 00791_ Acquired 10 matter. 00794_ R-06 Scavenger collects Fission Core. 00795_ Acquired Hcp. Battery. 00803_ Acquired Beam Cannon. 00872_ K-01 Serf collects debris. 00965_ EM Pulse Gun destroyed. 00967_ Lgt. Nuclear Core destroyed. 00968_ Seismic Detector destroyed. 00971_ Beam Cannon destroyed. 00972_ The unstable cave ceiling collapses. 00974_ Lgt. Treads destroyed. 00975_ K-01 Serf collects debris. 00979_ The unstable cave ceiling collapses. 00979_ Lgt. Treads destroyed. 00981_ The unstable cave ceiling collapses. 00981_ Wheel destroyed. 00981_ Assault Rifle destroyed. 00983_ The unstable cave ceiling collapses. Map ----- +----------------------------------------------------+ | | | | | | | ?????????????????????????????????????????????????? | | ?????????????????????????????????????????????????? | | ?????????????????????????????????????????????????? | | ?????????????????????????????????????????????????? | | ?????????????????????????????????????????????????? | | ?????????????????????????????????????????????????? | | ?????????????????????????????????????????????????? | | ?????????????????????????????????????????????????? | | ?????????????????????????????????????????????????? | | ???????????????????????????? #???????????????????? | | ???????????????????????????# ##??????????????????? | | ??????????????????????????# ? ???????????????? | | ????????????????????????## ? ????????????????? | | ????????????????????????# """ ????????????????? | | ???????????????????????## """ #????????????????? | | ?????????????????????### """ #?????????????????? | | ????????????????????## #??????????######## | | ????????????????????# ########???## ## # | | ?????????????########k ### # # #??## | | ?????????????# ### #### | | ?????????????# ## # | | ?????????????# #### ###### | | ?????????????# #??## @d ##????? | | ????????###### #???## t d ##?????? | | ????????# #????### # ##??????? | | ????????# ######??????# # ##???????? | | ????????# #???????????# ###????????? | | ????????# #??????????## ### #??????????? | | ????????# #??????????# #?##### ##??????????? | | ????????# #??######### ###?????#### ##???????????? | | ????????# #??# #???????????##????????????? | | ????????# ##?# ########?????????????????????????? | | ???????## ### #????????????????????????????????? | | ???????# #????????????????????????????????? | | ?####### #????????????????????????????????? | | ?? ## ##???????????????????????????????? | | ???# ## #???????????????????????????????? | | ###%## ##???????????????????????????????? | | [ ###????????????????????????????????? | | ##??????????????????????????????????? | | ##### ##???????????????????????????????????? | | ????### ##????????????????????????????????????? | | ??????# #?????????????????????????????????????? | | # ???????# ?????????????????????????????????????? | | # ???????# ????????????????????????????????????? | | ???????# ???????????????????????????????????? | | ???????? ? ??????????????????????????????????? | +----------------------------------------------------+ Best States ------------- Heat Dissipation 25 Energy Generation 14 Energy Capacity 160 Matter Stores 300 Matter Capacity 300 Sight Range 16 Terrain Scan Density 10 Evasion (%) 40 Recoil Reduction 2 Item Schematics ----------------- None Robot Schematics ------------------ None Fabricated ------------ Nothing Repaired ---------- Nothing Studied --------- None Alien Tech Used ----------------- None Achievements -------------- None Challenges ------------ None Game ------ Seed SpliceAssaultScreen Manual? 0 Play Time 00:05:00 Cumulative 113.9 hours Start 2026.07.03 @ 19:36:42 End 2026.07.03 @ 19:40:47 Sessions 1 Manual Loads 0 Difficulty Rogue Special Mode None Game No. 241 Rogue 241 Adventurer 0 Explorer 0 Win Type - Total 0 Types 0/0/0/0/0/0/0/0/0/0 Lore% 50 Gallery% 51 Achievement% 41 Wizard Run 0 Options --------- Layout 2 ASCII 0 Keyboard 1 Movement Arrows Keybinds 0 Fullscreen 1 Font 24/Smallcaps Map View 50x44 Zoom Use 0% Tactical HUD 1 Map Filters NONE Filters NONE Steam 1 RUN: 80616ca2-701b-43d5-aadc-a8b2d60d7dcd